bitfinex-derivatives/quotes_BNBF0:USTF0_20250211
["timestamp","ask_amount","ask_price","bid_price","bid_amount"]
[1739280841770,0.26568123,636.97,636.36,1.114]
[1739280841971,0.31399145,636.96,636.36,1.114]
[1739280842171,0.26568123,636.95,636.36,1.114]
[1739280842472,0.31400131,636.94,636.36,1.114]
[1739280844884,0.26573374,636.93,636.36,1.114]
[1739280845274,0.26573374,636.93,635.19,1.16086779]
[1739280845467,0.26573374,636.93,635.2,0.28893249]
[1739280845671,0.26573374,636.93,635.08,0.28893249]
[1739280845874,0.26573374,636.93,635.09,0.28893249]
[1739280846074,0.26573374,636.93,635.08,0.28893249]
[1739280846569,0.26573374,636.93,635.08,0.96293249]
[1739280846774,0.26573374,636.93,635.09,0.28893249]
[1739280847075,0.3140161,636.91,635.09,0.60384848]
[1739280847274,0.26573374,636.9,635.1,0.60384352]
[1739280847476,0.26573374,636.9,635.11,0.28893249]
[1739280847678,0.3140161,636.91,635.1,0.31491103]
[1739280847876,0.26570105,636.9,635.11,0.28889271]
[1739280848475,0.26570105,636.9,635.12,0.31490112]
[1739280848676,0.26570105,636.9,635.13,0.28889271]
[1739280849277,0.3140309,636.88,635.13,0.28889271]
[1739280849476,0.26570105,636.87,635.14,0.3148912]
[1739280849675,0.31404569,636.85,635.15,0.28889271]
[1739280849876,0.26570105,636.84,635.16,0.31488128]
[1739280850070,0.31406048,636.82,635.17,0.28889271]
[1739280850271,0.26570105,636.81,635.17,0.28889271]
[1739280850976,0.26570105,636.8,635.17,0.28889271]
[1739280851177,0.26570105,636.81,635.16,0.31488128]
[1739280851377,0.26570105,636.8,635.16,0.31488128]
[1739280851579,0.26570105,636.79,635.16,0.31488128]
[1739280851878,0.26570105,636.78,635.16,0.31488128]
[1739280852078,0.26570105,636.81,635.17,0.28896696]
[1739280852274,0.26570105,636.8,635.17,0.28896696]
[1739280852479,0.26570105,636.81,635.17,0.28896696]
[1739280852779,0.26570105,636.8,635.17,0.28896696]
[1739280853074,0.26570105,636.79,635.17,0.28896696]
[1739280853280,0.26570105,636.81,635.17,0.28896696]
[1739280853477,0.26570105,636.8,635.17,0.28896696]
[1739280853677,0.31408021,636.78,635.17,0.28896696]
[1739280853976,0.26570105,636.77,635.17,0.28896696]
[1739280854178,0.31409501,636.75,635.16,0.31488128]
[1739280854474,0.26570105,636.74,635.16,0.31488128]
[1739280855581,0.31410981,636.72,635.16,0.31488128]
[1739280855776,0.26570105,636.71,635.16,0.31488128]
[1739280855981,0.31412461,636.69,635.16,0.31488128]
[1739280856183,0.26570105,636.68,635.17,0.28899869]
[1739280856582,0.26549678,636.67,635.18,0.2889816]
[1739280856782,0.26549678,636.68,635.16,0.31488128]
[1739280856978,0.26549678,636.67,635.16,0.31488128]
[1739280857284,0.26549678,636.66,635.16,0.31488128]
[1739280857478,0.26549678,636.68,635.16,0.31488128]
[1739280857678,0.26549678,636.67,635.16,0.31488128]
[1739280857983,0.26549678,636.66,635.16,0.31488128]
[1739280858284,0.26549678,636.68,635.16,0.31488128]
[1739280858483,0.26549678,636.67,635.16,0.31488128]
[1739280858685,0.26549678,636.68,635.16,0.31488128]
[1739280858984,0.26549678,636.67,635.16,0.31488128]
[1739280859179,0.26549678,636.68,635.16,0.31488128]
[1739280859381,0.26549678,636.67,635.16,0.31488128]
[1739280859581,0.26549678,636.66,635.16,0.31488128]
[1739280859880,0.31412461,636.69,635.16,0.31488128]
[1739280860078,0.26546678,636.68,635.16,0.31488128]
[1739280860686,0.31413941,636.66,635.16,0.31488128]
[1739280860885,0.26546678,636.65,635.16,0.31488128]
[1739280862185,0.26546678,636.65,635.08,0.674]
[1739280862387,0.26546678,636.65,635.09,0.28904313]
[1739280862585,0.26546678,636.65,635.08,0.674]
[1739280863382,0.31415421,636.63,635.08,0.674]
[1739280863785,0.26547055,636.62,635.08,0.674]
[1739280863983,0.31416902,636.6,635.08,0.674]
[1739280864183,0.26547055,636.59,635.08,0.674]
[1739280864387,0.26547055,636.59,635.09,0.28902535]
[1739280864988,0.26547055,636.58,635.09,0.28902535]
[1739280865184,0.26547055,636.59,635.09,0.28902535]
[1739280865384,0.26547055,636.58,635.09,0.28902535]
[1739280865689,0.26547055,636.57,635.09,0.28902535]
[1739280865991,0.26547055,636.56,635.09,0.28902535]
[1739280866188,0.26547055,636.59,635.09,0.28902535]
[1739280866385,0.26547055,636.58,635.09,0.28902535]
[1739280866591,0.26547055,636.59,635.09,0.28902535]
[1739280866789,0.26547055,636.58,634.64,0.90713109]
[1739280866988,0.31416902,636.6,634.65,0.28902535]
[1739280866989,0.26547055,636.59,634.65,0.28902535]
[1739280867189,0.26547055,636.58,634.66,0.60415471]
[1739280867386,0.31416902,636.6,634.67,0.90713109]
[1739280867590,0.31416902,636.6,634.68,0.28902535]
[1739280867792,0.31416902,636.6,634.69,0.28902535]
[1739280867991,0.31416902,636.6,634.7,0.28902535]
[1739280868191,0.31416902,636.6,634.67,0.28902535]
[1739280868392,0.31416902,636.6,634.68,0.28902535]
[1739280868592,0.31416902,636.6,634.69,0.28894702]
[1739280868792,0.31416902,636.6,634.67,0.28894702]
[1739280869089,0.26552519,636.59,634.68,0.28894702]
[1739280869391,0.26552519,636.59,634.69,0.28894702]
[1739280869592,0.26552519,636.59,634.67,0.61796371]
[1739280869593,0.26552519,636.59,634.75,1.16086779]
[1739280869793,0.26552519,636.59,634.76,0.90691073]
[1739280870094,0.26552519,636.59,634.77,0.28894702]
[1739280870293,0.26552519,636.59,634.76,0.90691073]
[1739280870492,0.26552519,636.59,634.78,0.31506978]
[1739280870688,0.26552519,636.59,634.79,0.90691073]
[1739280870894,0.31417889,636.58,634.81,0.31505489]
[1739280871092,0.26552519,636.57,634.82,0.90691073]
[1739280871291,0.26552519,636.57,634.84,0.31504001]
[1739280871593,0.31418876,636.56,634.85,0.28894702]
[1739280872592,0.31418876,636.56,634.87,0.31502512]
[1739280872787,0.31418876,636.56,634.88,0.28894702]
[1739280873186,0.31418876,636.56,634.9,0.31501023]
[1739280873388,0.31418876,636.56,634.91,0.28894702]
[1739280873593,0.31418876,636.56,634.93,0.31499535]
[1739280873793,0.31418876,636.56,634.94,0.28894702]
[1739280873991,0.26547063,636.55,634.96,0.31498047]
[1739280874192,0.26547063,636.55,634.97,0.90691447]
[1739280874392,0.26547063,636.55,634.98,0.90691447]
[1739280874697,0.26547063,636.55,634.99,0.90691447]
[1739280874895,0.31418876,636.56,634.96,0.31498047]
[1739280874896,0.31418876,636.56,634.97,0.90691447]
[1739280875091,0.31418876,636.56,634.99,0.31496559]
[1739280875296,0.31418876,636.56,635.0,0.90691447]
[1739280875497,0.31418876,636.56,635.02,0.31495071]
[1739280875699,0.31418876,636.56,635.03,0.90665408]
[1739280875892,0.31418876,636.56,635.04,0.28884774]
[1739280876090,0.31418876,636.56,635.06,0.31493087]
[1739280876295,0.31418876,636.56,635.07,0.90665408]
[1739280876490,0.31418876,636.56,635.09,0.31491599]
[1739280876694,0.31418876,636.56,635.1,0.90665408]
[1739280876997,0.31418876,636.56,635.12,0.31490112]
[1739280877196,0.31418876,636.56,635.13,0.90665408]
[1739280877398,0.31418876,636.56,635.15,0.31488624]
[1739280877792,0.31418876,636.56,635.16,0.28884774]
[1739280877996,0.31418876,636.56,635.18,0.31487137]
[1739280878198,0.31418876,636.56,635.19,0.90665408]
[1739280878392,0.31418876,636.56,635.21,0.3148565]
[1739280878593,0.31418876,636.56,635.22,0.90665408]
[1739280878794,0.31418876,636.56,635.24,0.31484163]
[1739280879195,0.31418876,636.56,635.25,0.90646201]
[1739280879400,0.31418876,636.56,635.27,0.31482676]
[1739280879593,0.31418876,636.56,635.28,0.28878429]
[1739280879792,0.31418876,636.56,635.3,0.31481189]
[1739280880000,0.31418876,636.56,635.31,0.28878429]
[1739280880201,0.31418876,636.56,635.32,0.31480198]
[1739280880398,0.31418876,636.56,635.33,0.28878429]
[1739280880597,0.31418876,636.56,635.34,0.31479207]
[1739280880799,0.31418876,636.56,635.35,0.28874761]
[1739280880995,0.31418876,636.56,635.36,0.31478217]
[1739280881197,0.31418876,636.56,635.37,0.28874761]
[1739280881394,1.39241872,637.32,635.37,0.28874761]
[1739280881599,0.31382394,637.3,635.39,0.3147673]
[1739280881902,0.26554338,637.29,635.4,0.28874761]
[1739280882101,0.26554338,637.29,635.42,0.31475244]
[1739280882294,0.26554338,637.29,635.43,0.28874761]
[1739280882496,0.26554338,637.29,635.45,0.31473758]
[1739280882700,0.31383871,637.27,635.46,0.28874761]
[1739280882899,0.26554338,637.26,635.46,0.28874761]
[1739280883104,0.26554338,637.26,635.47,0.28874761]
[1739280883302,0.26554338,637.26,635.48,0.28874761]
[1739280883496,0.26554338,637.26,635.49,0.28874761]
[1739280883802,0.26554338,637.26,635.51,0.31470787]
[1739280884002,0.31384856,637.25,635.52,0.90617466]
[1739280884197,0.31384856,637.25,635.51,0.31470787]
[1739280884396,0.2655436,637.24,635.52,0.90609467]
[1739280884601,0.2655436,637.24,635.54,0.31469301]
[1739280884801,0.2655436,637.24,635.55,0.28866277]
[1739280885402,0.2655436,637.24,635.54,0.31469301]
[1739280885597,0.2655436,637.24,635.55,0.28866277]
[1739280885797,0.2655436,637.24,635.55,0.90609467]
[1739280885997,0.2655436,637.24,635.54,0.31469301]
[1739280886199,0.2655436,637.24,635.55,0.28866277]
[1739280887299,0.31385841,637.23,635.57,0.31467816]
[1739280887505,0.2655436,637.22,635.58,0.28866277]
[1739280887705,0.31385841,637.23,635.57,0.31467816]
[1739280887907,0.26560625,637.22,635.58,0.28864601]
[1739280888201,0.26560625,637.22,635.6,0.31466331]
[1739280888400,0.26560625,637.22,635.61,0.28864601]
[1739280888804,0.31385841,637.23,635.61,0.90594957]
[1739280888999,0.26557749,637.22,635.62,0.90594957]
[1739280889200,0.26557749,637.22,635.63,0.28864601]
[1739280889505,0.31385841,637.23,635.64,0.28864601]
[1739280889700,0.31385841,637.23,635.65,0.28864601]
[1739280889897,0.31385841,637.23,635.66,0.28864601]
[1739280890097,0.31385841,637.23,635.67,0.28864601]
[1739280890299,0.31385841,637.23,635.68,0.28864601]
[1739280890500,0.31385841,637.23,635.61,0.61730356]
[1739280890501,0.31385841,637.23,635.69,0.28864601]
[1739280890805,0.31385841,637.23,635.7,0.28864601]
[1739280891005,0.31385841,637.23,635.71,0.28864601]
[1739280891211,0.26559789,637.22,635.62,0.28864601]
[1739280891410,0.26559789,637.22,635.63,0.28864601]
[1739280891602,0.26559789,637.22,635.64,0.28864601]
[1739280891807,0.26559789,637.22,635.65,0.28864601]
[1739280892006,0.26559789,637.22,635.66,0.28864601]
[1739280892307,0.26559789,637.22,635.67,0.28864601]
[1739280892608,0.26559789,637.22,635.68,0.28864601]
[1739280892809,0.26559789,637.22,635.69,0.28864601]
[1739280893107,0.26559789,637.22,635.7,0.28864601]
[1739280893306,0.26559789,637.22,635.6,0.31466331]
[1739280893507,0.26559789,637.21,635.6,0.31466331]
[1739280893706,0.26559789,637.2,635.6,0.31466331]
[1739280894003,0.26559789,637.19,635.6,0.31466331]
[1739280894203,0.26559789,637.18,635.6,0.00826556]
[1739280894404,0.26559789,637.17,635.6,0.00826556]
[1739280894602,0.26559789,637.16,635.18,1.16086779]
[1739280894901,0.26559789,637.15,635.18,1.16086779]
[1739280895104,0.26559789,637.14,635.18,1.16086779]
[1739280895304,0.26559789,637.13,635.18,1.16086779]
[1739280895501,0.26559789,637.12,635.18,1.16086779]
[1739280895707,3.89723187,637.11,635.18,1.16086779]
[1739280895908,3.89723187,637.1,635.18,1.16086779]
[1739280896108,0.26559789,637.09,635.18,1.16086779]
[1739280896410,3.89723187,637.08,635.18,1.16086779]
[1739280896712,6.5989973,637.07,635.18,1.16086779]
[1739280896910,5.72950406,637.06,635.18,1.16086779]
[1739280897111,5.72950406,637.06,627.04,5.59128668]
[1739280897112,1.39241872,636.83,632.97,1.16086779]
[1739280897312,0.26559789,636.82,632.97,1.16086779]
[1739280897512,0.26559789,636.81,632.97,1.16086779]
[1739280897712,0.26559789,636.8,632.97,1.16086779]
[1739280897912,0.26559789,636.79,632.98,0.90847297]
[1739280898115,0.26559789,636.78,633.17,0.31587093]
[1739280898411,0.26559789,636.77,633.18,0.90847297]
[1739280898613,0.26559789,636.76,633.19,0.90847297]
[1739280898814,0.26559789,636.75,633.2,0.28944981]
[1739280899009,0.26559789,636.74,633.21,0.28944981]
[1739280899212,0.26559789,636.73,633.22,0.28944981]
[1739280899415,0.26559789,636.72,633.23,0.28944981]
[1739280899615,0.26559789,636.71,633.24,0.28944981]
[1739280899815,0.26559789,636.7,633.25,0.28944981]
[1739280900017,0.26559789,636.92,633.26,0.28944981]
[1739280900316,0.26559789,636.91,633.27,0.28944981]
[1739280900518,0.31410487,636.73,633.45,0.31573131]
[1739280900718,0.26559789,636.72,633.46,0.90847297]
[1739280900918,0.26559789,636.72,633.47,0.28944981]
[1739280901116,0.26559789,636.72,633.48,0.28944981]
[1739280901520,0.26559789,636.71,633.49,0.28944981]
[1739280901721,0.26559789,636.7,633.5,0.28944981]
[1739280902020,0.26559789,636.69,633.51,0.28944981]
[1739280902220,0.26559789,636.68,633.52,0.28944981]
[1739280902417,0.26559789,636.67,633.53,0.28944981]
[1739280902625,0.26559789,636.66,633.54,0.28944981]
[1739280902820,0.26559789,636.65,633.55,0.28944981]
[1739280903222,0.26559789,636.64,633.56,0.28944981]
[1739280903423,0.31410487,636.73,633.57,0.28944981]
[1739280903424,0.26559789,636.63,633.57,0.28944981]
[1739280903718,0.26559789,636.62,633.58,0.28944981]
[1739280903923,0.26559789,636.61,633.59,0.28944981]
[1739280904123,0.26559789,636.6,633.6,0.28944981]
[1739280904325,0.26559789,636.59,633.61,0.28944981]
[1739280904525,0.26559789,636.58,633.62,0.28944981]
[1739280904824,0.26559789,636.57,633.63,0.28944981]
[1739280905024,0.26559789,636.57,633.64,0.28944981]
[1739280905224,0.26559789,636.72,633.64,0.28944981]
[1739280905425,0.26559789,636.72,633.65,0.28944981]
[1739280905619,0.26559789,636.72,633.66,0.28944981]
[1739280905820,0.26559789,636.72,633.67,0.28944981]
[1739280906124,0.26559789,636.72,633.68,0.28944981]
[1739280906320,0.26559789,636.72,633.69,0.28944981]
[1739280906520,0.26559789,636.72,633.7,0.28944981]
[1739280906720,0.31410487,636.73,633.84,0.31553704]
[1739280906923,0.26506618,636.72,633.85,0.90785692]
[1739280908326,0.31417889,636.58,633.99,0.31546238]
[1739280908531,0.26506618,636.57,634.0,0.90785692]
[1739280909626,0.31424306,636.45,634.1,0.31540766]
[1739280909827,0.26506618,636.44,634.11,0.90785692]
[1739280910029,0.26506618,636.44,634.11,0.28924593]
[1739280910226,0.31424306,636.45,634.1,0.31540766]
[1739280910529,0.26513991,636.44,634.11,0.90766173]
[1739280910729,0.26513991,636.44,634.13,0.31539274]
[1739280910926,0.31424306,636.45,634.13,0.31539274]
[1739280911127,0.26513019,636.44,634.14,0.28918654]
[1739280912332,0.26513019,636.44,634.14,0.90766724]
[1739280912536,0.26513019,636.44,634.15,0.90766724]
[1739280912832,0.26513019,636.44,634.16,0.90766724]
[1739280913131,0.26513019,636.44,634.13,0.31539274]
[1739280913132,0.26513019,636.44,634.17,0.28918654]
[1739280913332,0.26513019,636.44,634.18,0.28918654]
[1739280913527,0.26513019,636.44,634.14,0.90766724]
[1739280913732,0.26513019,636.44,634.15,0.28918654]
[1739280914235,0.26513019,636.44,634.16,0.28918654]
[1739280914433,0.26513019,636.44,634.17,0.28918654]
[1739280914630,0.26513019,636.44,634.18,0.28918654]
[1739280914834,0.26513019,636.44,634.19,0.28918654]
[1739280915035,0.26513019,636.44,634.2,0.28918654]
[1739280915237,0.26513019,636.43,634.14,0.28918654]
[1739280915431,0.26513019,636.42,634.13,0.31539274]
[1739280915631,0.26513019,636.41,634.14,0.28944924]
[1739280915937,0.26513019,636.4,634.14,0.28944924]
[1739280916137,0.31424306,636.45,634.14,0.28944924]
[1739280916138,0.26513019,636.39,634.14,0.28944924]
[1739280916331,0.26513019,636.38,634.14,0.28944924]
[1739280916537,0.26513019,636.37,634.14,0.28944924]
[1739280916737,0.26513019,636.36,634.14,0.28944924]
[1739280916938,0.26513019,636.35,634.14,0.28944924]
[1739280917136,0.26513019,636.34,634.14,0.28944924]
[1739280917333,0.26513019,636.33,634.13,0.31539274]
[1739280917537,0.31424306,636.45,634.13,0.31539274]
[1739280917538,0.26513019,636.32,634.14,0.28948217]
[1739280917737,0.26513019,636.31,634.14,0.28948217]
[1739280917935,0.26513019,636.44,634.13,0.31539274]
[1739280918136,0.26513019,636.43,634.13,0.31539274]
[1739280918338,0.26513019,636.42,634.13,0.31539274]
[1739280918637,0.26513019,636.41,634.13,0.31539274]
[1739280918838,0.31424306,636.45,634.13,0.31539274]
[1739280918839,0.26513019,636.4,634.13,0.31539274]
[1739280919036,0.26513019,636.39,634.13,0.31539274]
[1739280919236,0.26513019,636.38,634.13,0.31539274]
[1739280919438,0.26513019,636.37,634.13,0.31539274]
[1739280919637,0.26513019,636.36,634.13,0.31539274]
[1739280919842,0.26513019,636.35,634.13,0.31539274]
[1739280920139,0.26513019,636.34,633.2,0.61924672]
[1739280920338,0.31424306,636.45,633.2,0.61924672]
[1739280920339,0.31437149,636.19,633.22,0.31584599]
[1739280920535,0.26513019,636.18,633.23,0.90881018]
[1739280920735,0.31444563,636.04,633.25,0.31583103]
[1739280920939,0.26513019,636.03,633.26,0.90881018]
[1739280921143,0.31451486,635.9,633.28,0.31581606]
[1739280921443,0.26513019,635.89,633.29,0.90881018]
[1739280921640,0.26513019,635.89,633.31,0.3158011]
[1739280921840,0.26513019,635.89,633.32,0.28956346]
[1739280922237,0.26513019,635.89,633.32,0.90882433]
[1739280922440,0.26513019,635.89,633.33,0.90882433]
[1739280922643,0.26513019,635.89,633.32,0.90882433]
[1739280922837,0.26513019,635.89,633.34,0.61926087]
[1739280923036,0.26513019,635.89,633.35,0.90882433]
[1739280923240,0.26513019,635.89,633.36,0.90882433]
[1739280923441,0.26513019,635.89,633.37,0.28956346]
[1739280923638,0.26513019,635.89,633.37,0.90882433]
[1739280924042,0.31451486,635.9,633.31,0.3158011]
[1739280924937,0.26477697,635.89,633.32,0.90870835]
[1739280925242,0.26477697,635.89,633.33,0.28952779]
[1739280925442,0.26477697,635.89,633.34,0.28952779]
[1739280925643,0.31451486,635.9,633.31,0.3158011]
[1739280925843,0.26480278,635.89,633.32,0.28957795]
[1739280926145,0.31457917,635.77,633.34,0.31578614]
[1739280926446,0.26480278,635.76,633.35,0.28957795]
[1739280926743,0.3146435,635.64,633.37,0.31577119]
[1739280927144,0.26480278,635.63,633.38,0.28957795]
[1739280927347,0.26480278,635.63,633.4,0.31575623]
[1739280927544,0.3146435,635.64,633.4,0.31575623]
[1739280927846,0.26485505,635.63,633.41,0.28954769]
[1739280928046,0.31470292,635.52,633.43,0.31574128]
[1739280928247,0.26485505,635.51,633.44,0.28954769]
[1739280928847,0.3147574,635.41,633.46,0.31572632]
[1739280929049,0.26485505,635.4,633.47,0.28954769]
[1739280929244,0.31477226,635.38,633.49,0.31571137]
[1739280929644,0.26485505,635.37,633.5,0.28954769]
[1739280929847,0.31478712,635.35,633.52,0.31569642]
[1739280930049,0.26485505,635.34,633.53,0.28954769]
[1739280930250,0.31480198,635.32,633.55,0.31568147]
[1739280930549,0.26481926,635.31,633.56,0.90871934]
[1739280930743,0.31481189,635.3,633.58,0.31566652]
[1739280931048,0.31481189,635.3,633.59,0.90871934]
[1739280931249,0.31481189,635.3,633.61,0.31565158]
[1739280931449,0.31481189,635.3,633.62,0.28954769]
[1739280931644,0.31481189,635.3,633.64,0.31563663]
[1739280931847,0.31481189,635.3,633.65,0.28954769]
[1739280932247,0.31481189,635.3,633.65,0.90860254]
[1739280933845,0.31481189,635.3,633.66,0.28954769]
[1739280934044,0.31481189,635.3,633.67,0.28954769]
[1739280934250,0.31481189,635.3,633.68,0.28954769]
[1739280934450,0.31481189,635.3,633.69,0.28954769]
[1739280934650,0.31481189,635.3,633.65,0.90820469]
[1739280934850,0.31481189,635.3,633.66,0.90790517]
[1739280935051,0.31481189,635.3,633.67,0.90790517]
[1739280935248,0.31481189,635.3,633.68,0.28926198]
[1739280935452,0.31481189,635.3,633.69,0.28926198]
[1739280935653,0.31481189,635.3,633.7,0.28926198]
[1739280935854,0.31481189,635.3,633.71,0.28926198]
[1739280936046,1.39241872,636.65,633.72,0.28926198]
[1739280936247,0.31421344,636.51,633.84,0.31553704]
[1739280936554,0.26501089,636.5,633.85,0.90790517]
[1739280936747,0.26501089,636.49,633.87,0.31552211]
[1739280936946,0.31428751,636.36,633.88,0.90790517]
[1739280937352,0.26501089,636.35,633.89,0.28926198]
[1739280937548,0.26501089,636.35,633.9,0.28926198]
[1739280937753,0.26501089,636.35,633.91,0.28926198]
[1739280937953,0.26501089,636.35,633.92,0.28926198]
[1739280938151,0.26501089,636.34,633.93,0.28926198]
[1739280938455,0.26501089,636.33,633.94,0.90790517]
[1739280938758,0.26501089,636.32,633.95,0.90790517]
[1739280938953,0.26501089,636.32,633.87,0.31552211]
[1739280938954,0.26501089,636.35,633.96,0.28926198]
[1739280939149,0.26501089,636.35,633.97,0.28926198]
[1739280939355,0.26501089,636.35,633.98,0.28926198]
[1739280939649,0.26501089,636.35,633.99,0.28926198]
[1739280939855,0.26501089,636.35,634.0,0.28926198]
[1739280940050,0.26501089,636.35,634.01,0.28926198]
[1739280940257,0.26501089,636.35,634.02,0.28926198]
[1739280940451,0.26501089,636.35,634.03,0.28926198]
[1739280940655,0.26501089,636.35,634.04,0.28926198]
[1739280940856,0.26501089,636.35,634.05,0.28926198]
[1739280941158,0.26501089,636.35,634.06,0.28926198]
[1739280941359,0.26501089,636.35,634.17,0.31537284]
[1739280941557,0.31430232,636.33,634.18,0.90790517]
[1739280941757,0.26501089,636.32,634.19,0.28926198]
[1739280941959,0.26501089,636.32,634.2,0.28926198]
[1739280942159,0.26501089,636.32,634.3,0.31530821]
[1739280942458,0.31431714,636.3,634.31,0.90790517]
[1739280942654,0.26501089,636.29,634.32,0.28926198]
[1739280942859,0.26501089,636.29,634.33,0.28926198]
[1739280943059,0.26501089,636.29,634.34,0.28926198]
[1739280943260,0.31432702,636.28,634.35,0.60454534]
[1739280943455,0.26501089,636.27,634.37,0.31527342]
[1739280943762,0.3143369,636.26,634.38,0.90790517]
[1739280943958,0.3143369,636.26,634.39,0.28926198]
[1739280944154,0.3143369,636.26,634.41,0.31525354]
[1739280944358,0.26517491,636.25,634.42,0.90790517]
[1739280944558,0.3143369,636.26,634.42,0.90790517]
[1739280944559,0.3143369,636.26,634.44,0.31523863]
[1739280944756,0.3143369,636.26,634.45,0.90790517]
[1739280944959,0.3143369,636.26,634.47,0.31522373]
[1739280945260,0.3143369,636.26,634.48,0.90790517]
[1739280945461,0.3143369,636.26,634.49,0.28926198]
[1739280945660,0.3143369,636.26,634.51,0.31520385]
[1739280945856,0.3143369,636.26,634.52,0.90715396]
[1739280946054,0.3143369,636.26,634.53,0.2890133]
[1739280946359,0.3143369,636.26,634.54,0.2890133]
[1739280946554,0.3143369,636.26,634.55,0.2890133]
[1739280946755,0.3143369,636.26,634.56,0.2890133]
[1739280946957,0.3143369,636.26,634.57,0.2890133]
[1739280947158,0.3143369,636.26,634.58,0.2890133]
[1739280947557,0.3143369,636.26,634.59,0.2890133]
[1739280947756,0.3143369,636.26,634.6,0.2890133]
[1739280947956,0.3143369,636.26,634.61,0.2890133]
[1739280948359,0.3143369,636.26,634.62,0.2890133]
[1739280948655,0.3143369,636.26,634.63,0.2890133]
[1739280948962,0.3143369,636.26,634.52,0.61814066]
[1739280948963,0.3143369,636.26,634.64,0.2890133]
[1739280949263,0.3143369,636.26,634.65,0.2890133]
[1739280949459,0.3143369,636.26,634.66,0.2890133]
[1739280949655,0.3143369,636.26,634.68,0.31511943]
[1739280949855,0.3143369,636.26,634.69,0.90715396]
[1739280950058,0.3143369,636.26,634.7,0.2890133]
[1739280950260,0.3143369,636.26,634.71,0.2890133]
[1739280950455,0.3143369,636.26,634.72,0.2890133]
[1739280950658,0.3143369,636.26,634.73,0.2890133]
[1739280950858,0.3143369,636.26,634.74,0.2890133]
[1739280951261,0.3143369,636.26,634.75,0.2890133]
[1739280951461,0.3143369,636.26,634.69,0.2890133]
[1739280952760,0.3143369,636.26,634.7,0.2890133]
[1739280952960,0.3143369,636.26,634.71,0.2890133]
[1739280953158,0.3143369,636.26,634.72,0.2890133]
[1739280953359,0.3143369,636.26,634.69,0.61811963]
[1739280953360,0.3143369,636.26,634.73,0.2890133]
[1739280953561,0.26497486,636.25,634.69,0.2890133]
[1739280953859,0.26497486,636.25,634.7,0.2890133]
[1739280954056,0.26497486,636.25,634.71,0.2890133]
[1739280954261,0.26497486,636.25,634.69,0.2890133]
[1739280954456,0.26492043,636.24,634.7,0.28919343]
[1739280954661,0.26492043,636.25,634.69,0.28919343]
[1739280954865,0.31435172,636.23,634.7,0.28919343]
[1739280955159,0.26492043,636.22,634.69,0.28919343]
[1739280955363,0.26492043,636.22,634.68,0.31511943]
[1739280955564,0.26492043,636.22,633.43,0.61854723]
[1739280955758,0.26492043,636.22,633.56,0.31567649]
[1739280955959,0.31441597,636.1,633.57,0.90782064]
[1739280956160,0.26492043,636.09,633.69,0.31561173]
[1739280956360,0.3144308,636.07,633.7,0.28927341]
[1739280956564,0.26492043,636.06,633.71,0.28927341]
[1739280956759,0.26492043,636.06,633.72,0.28927341]
[1739280957066,0.26492043,636.06,633.73,0.28927341]
[1739280957267,0.26492043,636.06,633.74,0.28927341]
[1739280957464,0.26492043,636.06,633.75,0.28927341]
[1739280957668,0.26492043,636.06,633.76,0.28927341]
[1739280957864,0.26492043,636.06,633.77,0.28927341]
[1739280958065,0.26492043,636.06,633.78,0.28927341]
[1739280958264,0.26492043,636.06,633.79,0.28927341]
[1739280958465,0.26492043,636.06,633.8,0.28927341]
[1739280958661,0.26492043,636.06,633.81,0.28927341]
[1739280958969,0.26492043,636.06,633.82,0.28927341]
[1739280959164,0.26492043,636.06,633.83,0.28927341]
[1739280959365,0.3144308,636.07,633.84,0.28927341]
[1739280959567,0.26466679,636.06,633.85,0.28927341]
[1739280959762,0.3144308,636.07,633.86,0.28927341]
[1739280959965,0.3144308,636.07,633.7,0.61854723]
[1739280959966,0.3144308,636.07,633.87,0.28927341]
[1739280960164,0.3144308,636.07,633.88,0.28927341]
[1739280960361,0.3144308,636.07,633.89,0.28927341]
[1739280960666,0.3144308,636.07,633.98,0.31546736]
[1739280960866,0.3144308,636.07,633.99,0.90782064]
[1739280961267,0.3144308,636.07,634.09,0.31541263]
[1739280961463,0.3144308,636.07,634.1,0.90782064]
[1739280961766,0.3144308,636.07,634.11,0.28927341]
[1739280961962,0.3144308,636.07,634.12,0.28927341]
[1739280962164,0.3144308,636.07,634.13,0.28927341]
[1739280962366,0.3144308,636.07,634.14,0.28927341]
[1739280962674,0.3144308,636.07,634.15,0.28927341]
[1739280962868,0.3144308,636.07,634.09,0.31541263]
[1739280963068,0.3144308,636.07,634.17,0.31537284]
[1739280963265,0.3144308,636.07,634.18,0.90731724]
[1739280963465,0.3144308,636.07,634.2,0.31535793]
[1739280963665,0.3144308,636.07,634.21,0.90731724]
[1739280963872,0.3144308,636.07,634.23,0.31534301]
[1739280964067,0.3144308,636.07,634.24,0.90731724]
[1739280964372,0.3144308,636.07,634.25,0.28906726]
[1739280964672,0.3144308,636.07,634.26,0.28906726]
[1739280964870,0.3144308,636.07,634.27,0.28906726]
[1739280965071,0.3144308,636.07,634.28,0.28906726]
[1739280965272,0.3144308,636.07,634.29,0.28906726]
[1739280965474,0.3144308,636.07,634.3,0.28906726]
[1739280965674,0.3144308,636.07,634.31,0.28906726]
[1739280965877,0.3144308,636.07,634.32,0.28906726]